bitfinex/quotes_BTCUSD_20251124
["timestamp","ask_amount","ask_price","bid_price","bid_amount"]
[1763971200426,2.42135,87235.0,87234.0,0.1464]
[1763971200632,2.37135,87235.0,87234.0,0.1464]
[1763971201062,2.42135,87235.0,87234.0,0.1464]
[1763971201266,2.39285,87235.0,87234.0,0.1464]
[1763971201497,2.42135,87235.0,87234.0,0.1464]
[1763971201720,2.42734733,87235.0,87234.0,0.1464]
[1763971202165,2.68138798,87235.0,87234.0,0.1464]
[1763971202371,2.68138798,87235.0,87198.0,0.04281]
[1763971202372,0.05,87223.0,87198.0,0.0135]
[1763971202580,2.49053936,87223.0,87199.0,0.02293604]
[1763971202834,2.49053936,87223.0,87198.0,0.0135]
[1763971202835,2.51903936,87223.0,87198.0,0.0135]
[1763971203081,2.51903936,87223.0,87184.0,0.02931]
[1763971203324,0.323,87208.0,87180.0,0.0004]
[1763971203576,2.0,87222.0,87180.0,0.0004]
[1763971203577,0.01297,87183.0,87182.0,0.00036818]
[1763971204218,0.0135,87189.0,87182.0,0.04718818]
[1763971204436,0.0135,87189.0,87183.0,0.12062961]
[1763971204639,0.323,87199.0,87190.0,0.01817]
[1763971205278,0.323,87199.0,87198.0,0.03263]
[1763971205480,0.01297,87229.0,87198.0,0.03263]
[1763971205481,0.5937365,87208.0,87198.0,0.06128]
[1763971205681,0.323,87206.0,87199.0,0.01817]
[1763971205886,0.323,87204.0,87199.0,0.01817]
[1763971206089,0.01297,87200.0,87193.0,0.01446]
[1763971206422,0.05,87201.0,87193.0,0.01446]
[1763971206636,0.32216414,87204.0,87198.0,0.001]
[1763971206832,2.0,87207.0,87198.0,0.001]
[1763971207036,2.07793,87207.0,87193.0,0.01446]
[1763971207240,2.0,87206.0,87193.0,0.01546]
[1763971207651,0.5937365,87208.0,87182.0,0.00036818]
[1763971207652,0.01763,87194.0,87182.0,0.00036818]
[1763971207853,2.0,87193.0,87182.0,0.00036818]
[1763971208053,0.5937365,87192.0,87182.0,0.00036818]
[1763971208359,2.0,87191.0,87182.0,0.00036818]
[1763971208556,2.0,87191.0,87183.0,0.09768936]
[1763971208797,0.323,87191.0,87183.0,0.09768936]
[1763971208998,0.323,87191.0,87184.0,0.02293998]
[1763971209229,0.323,87191.0,87190.0,0.01817]
[1763971209908,0.323,87199.0,87184.0,0.02293998]
[1763971210055,0.01297,87191.0,87184.0,0.001]
[1763971210522,0.01297,87191.0,87183.0,0.1474]
[1763971210733,0.01297,87191.0,87190.0,0.001]
[1763971210943,0.33597,87191.0,87190.0,0.001]
[1763971211156,0.33597,87191.0,87183.0,0.1464]
[1763971211574,0.33597,87191.0,87190.0,0.001]
[1763971212062,0.01297,87191.0,87183.0,0.1464]
[1763971212255,0.01297,87191.0,87184.0,0.001]
[1763971212631,0.323,87197.0,87183.0,0.1474]
[1763971212860,0.323,87195.0,87190.0,0.01917]
[1763971213694,0.323,87195.0,87190.0,0.001]
[1763971213887,0.373,87199.0,87190.0,0.001]
[1763971214035,0.323,87195.0,87190.0,0.002]
[1763971214240,0.323,87195.0,87190.0,0.001]
[1763971215184,0.323,87197.0,87190.0,0.001]
[1763971215419,0.323,87195.0,87190.0,0.02965]
[1763971215622,0.323,87195.0,87190.0,0.001]
[1763971216093,0.323,87195.0,87194.0,0.01817]
[1763971216587,0.323,87205.0,87194.0,0.04682]
[1763971216780,0.323,87203.0,87194.0,0.01817]
[1763971217475,0.323,87203.0,87202.0,0.02952]
[1763971217678,0.5937365,87210.0,87202.0,0.02952]
[1763971217895,0.323,87208.0,87202.0,0.02952]
[1763971218548,0.323,87208.0,87207.0,0.01817]
[1763971218772,2.0,87225.0,87207.0,0.16457]
[1763971219146,2.0,87225.0,87202.0,0.04]
[1763971219147,0.03448694,87232.0,87224.0,0.03263]
[1763971219362,0.5,87239.0,87225.0,0.01817]
[1763971219566,0.01924246,87226.0,87215.0,0.01446]
[1763971219739,0.6113665,87225.0,87215.0,0.01446]
[1763971220165,0.323,87224.0,87215.0,0.01446]
[1763971220338,0.00161246,87226.0,87224.0,0.01817]
[1763971220540,0.00161246,87226.0,87215.0,0.01446]
[1763971220745,0.05,87224.0,87215.0,0.01446]
[1763971221131,0.05,87224.0,87209.0,0.1464]
[1763971221333,0.323,87219.0,87209.0,0.1464]
[1763971221727,2.0,87218.0,87209.0,0.1464]
[1763971221912,2.0,87214.0,87209.0,0.1464]
[1763971222111,2.0,87212.0,87204.0,0.02865]
[1763971222442,0.02127,87225.0,87202.0,0.01135]
[1763971222443,0.323,87211.0,87202.0,0.01135]
[1763971222699,0.32305834,87211.0,87202.0,0.01135]
[1763971223042,0.37305834,87211.0,87209.0,0.002]
[1763971223243,0.05,87210.0,87209.0,0.002]
[1763971223454,0.05,87198.0,87184.0,0.1464]
[1763971223667,0.323,87207.0,87180.0,0.0004]
[1763971223668,0.323,87195.0,87180.0,0.0004]
[1763971224148,0.323,87195.0,87182.0,0.02319178]
[1763971224371,0.323,87195.0,87182.0,0.00025127]
[1763971225585,0.323,87195.0,87187.0,0.1464]
[1763971225586,0.01,87192.0,87187.0,0.1464]
[1763971225819,0.05,87188.0,87187.0,0.1464]
[1763971226028,0.323,87195.0,87187.0,0.1464]
[1763971226029,0.01297,87189.0,87187.0,0.1464]
[1763971226238,0.01763,87188.0,87187.0,0.1464]
[1763971226658,0.01763,87188.0,87186.0,0.003]
[1763971226659,2.833,87187.0,87186.0,0.001]
[1763971226873,2.35063,87187.0,87186.0,0.001]
[1763971227077,2.48712131,87187.0,87186.0,0.001]
[1763971227278,2.3719,87187.0,87186.0,0.001]
[1763971227490,0.323,87186.0,87182.0,0.00025127]
[1763971227690,2.823,87183.0,87182.0,0.00025127]
[1763971227904,2.323,87183.0,87182.0,0.00025127]
[1763971228307,0.323,87183.0,87182.0,0.00025127]
[1763971228527,2.3619,87183.0,87182.0,0.00025127]
[1763971228710,2.35063,87183.0,87182.0,0.00025127]
[1763971228929,0.323,87183.0,87182.0,0.01853818]
[1763971229341,0.01297,87189.0,87182.0,0.00136818]
[1763971229543,2.0,87188.0,87182.0,0.00136818]
[1763971229845,2.0,87188.0,87182.0,0.00236818]
[1763971230295,2.0,87188.0,87182.0,0.00136818]
[1763971230632,0.01763,87183.0,87182.0,0.00136818]
[1763971230973,0.01,87202.0,87188.0,0.01817]
[1763971231173,0.87074697,87200.0,87183.0,0.02294025]
[1763971231402,0.87074697,87193.0,87182.0,0.00036818]
[1763971231624,0.87074697,87193.0,87182.0,0.00236818]
[1763971231846,0.87074697,87193.0,87182.0,0.00136818]
[1763971231847,0.00707,87183.0,87182.0,0.00136818]
[1763971232054,0.00707,87183.0,87182.0,0.00036818]
[1763971232851,0.00707,87189.0,87182.0,0.00136818]
[1763971233073,0.01763,87183.0,87182.0,0.00036818]
[1763971233300,0.06763,87183.0,87182.0,0.00136818]
[1763971233501,0.06763,87183.0,87182.0,0.00236818]
[1763971234161,2.39063,87183.0,87182.0,0.00236818]
[1763971234574,2.39063,87183.0,87182.0,0.00136818]
[1763971234780,2.39063,87183.0,87182.0,0.14776818]
[1763971234994,2.39063,87183.0,87182.0,0.14676818]
[1763971235237,2.39063,87183.0,87182.0,0.14876818]
[1763971235442,2.39063,87183.0,87182.0,0.14776818]
[1763971235658,2.39063,87183.0,87182.0,0.14676818]
[1763971235864,2.39063,87183.0,87182.0,0.14776818]
[1763971236855,2.39063,87183.0,87182.0,0.16709818]
[1763971236856,0.323,87183.0,87182.0,0.16709818]
[1763971237068,0.323,87183.0,87182.0,0.19655818]
[1763971237670,0.323,87183.0,87182.0,0.21949869]
[1763971237888,0.0345007,87196.0,87182.0,0.19655818]
[1763971238098,0.323,87207.0,87195.0,0.03398]
[1763971238309,0.323,87203.0,87195.0,0.03398]
[1763971238514,2.0,87200.0,87196.0,0.02946]
[1763971238722,0.12012936,87219.0,87196.0,0.02946]
[1763971238723,0.323,87197.0,87196.0,0.02946]
[1763971238926,0.323,87197.0,87195.0,0.01465]
[1763971239631,0.323,87197.0,87196.0,0.04879]
[1763971240066,2.0,87201.0,87196.0,0.02033]
[1763971240276,0.323,87198.0,87196.0,0.02033]
[1763971241300,0.323,87198.0,87196.0,0.01933]
[1763971241504,0.00707,87202.0,87197.0,0.01933]
[1763971241746,0.323,87198.0,87195.0,0.01465]
[1763971241955,0.01993,87196.0,87182.0,0.00036818]
[1763971242159,0.323,87194.0,87182.0,0.00036818]
[1763971242583,0.05,87189.0,87182.0,0.00036818]
[1763971242805,0.323,87187.0,87182.0,0.00036818]
[1763971243010,0.323,87183.0,87182.0,0.00036818]
[1763971243232,2.323,87183.0,87182.0,0.00036818]
[1763971244271,2.36537,87183.0,87182.0,0.00036818]
[1763971244454,2.37537,87183.0,87182.0,0.00236818]
[1763971244888,2.37537,87183.0,87182.0,0.00036818]
[1763971245092,2.37537,87183.0,87182.0,0.00136818]
[1763971245241,2.37537,87183.0,87182.0,0.00236818]
[1763971245423,2.46303243,87183.0,87182.0,0.00136818]
[1763971245622,2.69243495,87183.0,87182.0,0.00036818]
[1763971246596,2.37537,87183.0,87182.0,0.00036818]
[1763971247216,2.60477252,87183.0,87182.0,0.00036818]
[1763971247419,2.70687501,87183.0,87182.0,0.00036818]
[1763971248198,2.42747249,87183.0,87182.0,0.00036818]
[1763971248402,2.47747249,87183.0,87182.0,0.00036818]
[1763971248600,2.42847249,87183.0,87182.0,0.00036818]
[1763971248811,2.42947249,87183.0,87182.0,0.00036818]
[1763971249025,2.42847249,87183.0,87182.0,0.00036818]
[1763971249228,2.42747249,87183.0,87182.0,0.00036818]
[1763971249406,2.65687501,87183.0,87182.0,0.00036818]
[1763971249611,2.42747249,87183.0,87182.0,0.00036818]
[1763971250681,2.5426938,87183.0,87182.0,0.00036818]
[1763971250895,2.77209632,87183.0,87182.0,0.00036818]
[1763971251387,2.65687501,87183.0,87182.0,0.00036818]
[1763971251747,2.70687501,87183.0,87182.0,0.00036818]
[1763971251950,0.60451027,87181.0,87170.0,0.0004]
[1763971252157,2.6024341,87171.0,87170.0,0.0004]
[1763971252339,2.67238659,87171.0,87170.0,0.00079228]
[1763971252537,2.69303659,87171.0,87170.0,0.00079228]
[1763971252783,2.74781783,87171.0,87170.0,0.00037924]
[1763971252959,2.70454185,87169.0,87160.0,0.00601261]
[1763971253157,2.7471173,87169.0,87168.0,0.00017182]
[1763971253342,2.56237112,87169.0,87168.0,0.00017182]
[1763971253537,2.53764567,87169.0,87168.0,0.00017182]
[1763971253839,2.53764567,87169.0,87160.0,0.00601261]
[1763971253840,0.373,87161.0,87160.0,0.00601261]
[1763971254075,2.48853936,87161.0,87160.0,0.00605298]
[1763971254350,2.67651316,87161.0,87160.0,0.00605298]
[1763971254539,2.41526961,87161.0,87160.0,0.00605298]
[1763971255914,2.45079103,87161.0,87160.0,0.00605298]
[1763971256235,2.39768854,87161.0,87160.0,2.98e-06]
[1763971256409,2.39768854,87161.0,87140.0,0.0004]
[1763971256410,2.0,87150.0,87140.0,0.0004]
[1763971256769,2.39792,87141.0,87140.0,0.0004]
[1763971256925,2.3980374,87141.0,87140.0,0.0004]
[1763971257337,2.64820048,87141.0,87140.0,0.0004]
[1763971257536,2.69531798,87141.0,87140.0,0.0004]
[1763971257938,2.4658049,87141.0,87140.0,0.0004]
[1763971258549,2.4668049,87141.0,87140.0,0.0004]
[1763971258896,2.4658049,87141.0,87140.0,0.0013428]
[1763971259634,2.33339367,87141.0,87140.0,0.0013428]
[1763971260244,2.33290963,87141.0,87140.0,0.0013428]
[1763971260652,2.31225963,87141.0,87140.0,0.0013428]
[1763971260856,1.93925963,87141.0,87140.0,0.0013428]
[1763971261094,1.90473765,87141.0,87140.0,0.0013428]
[1763971261339,2.29174765,87141.0,87140.0,0.0013428]
[1763971261968,2.29174765,87141.0,87140.0,0.0023428]
[1763971262081,2.24174765,87141.0,87140.0,0.0201528]
[1763971262301,2.22773765,87141.0,87140.0,0.0201528]
[1763971262507,2.22773765,87141.0,87140.0,0.0023428]
[1763971263569,2.22773765,87141.0,87140.0,0.0013428]
[1763971263775,2.22773765,87141.0,87140.0,0.0033428]
[1763971264372,2.22773765,87141.0,87140.0,0.0043428]
[1763971265498,0.01271292,87141.0,87140.0,0.0503928]
[1763971265904,0.0001174,87141.0,87140.0,0.1967928]
[1763971266107,0.0001174,87141.0,87140.0,0.1691828]
[1763971266288,0.0001174,87141.0,87140.0,0.1507428]
[1763971266491,0.01260672,87141.0,87140.0,0.1507428]
[1763971267483,2.38560672,87141.0,87140.0,0.1477428]
[1763971267679,2.38560672,87141.0,87140.0,0.0013428]
[1763971267938,2.38560672,87141.0,87140.0,0.0023428]
[1763971268700,2.38560672,87141.0,87140.0,0.0033428]
[1763971269470,2.38560672,87141.0,87140.0,0.0023428]
[1763971269674,2.33560672,87141.0,87140.0,0.0350528]
[1763971269881,2.33560672,87141.0,87140.0,0.0360528]
[1763971271357,2.33560672,87141.0,87140.0,0.0636628]
[1763971271548,0.0001174,87141.0,87140.0,0.2100628]
[1763971272825,0.0001174,87141.0,87140.0,0.2080628]
[1763971273038,0.0001174,87141.0,87140.0,0.2100628]
[1763971273248,0.0001174,87141.0,87140.0,0.2110628]
[1763971273668,0.0001174,87141.0,87140.0,0.2100628]
[1763971274084,0.0001174,87141.0,87140.0,0.2110628]
[1763971274263,0.0001174,87141.0,87140.0,0.26316529]
[1763971274909,0.0001174,87141.0,87140.0,0.2110628]
[1763971275759,0.0001174,87141.0,87140.0,0.23401437]
[1763971277186,0.0001174,87141.0,87140.0,0.2110628]
[1763971277944,0.0001174,87141.0,87140.0,0.1834528]
[1763971278385,0.0001174,87141.0,87140.0,0.0043428]
[1763971279000,0.0001174,87141.0,87140.0,0.0033428]
[1763971279450,0.0001174,87141.0,87140.0,0.0207828]
[1763971279658,0.0001174,87141.0,87140.0,0.0493928]
[1763971280058,2.01,87158.0,87140.0,0.0493928]
[1763971280270,2.0,87157.0,87140.0,0.04845]
[1763971280438,2.0,87157.0,87140.0,0.02084]
[1763971280661,2.0,87157.0,87141.0,0.13089148]
[1763971280853,0.05,87162.0,87156.0,0.01427]
[1763971281059,2.0,87159.0,87156.0,0.01427]
[1763971281477,2.0,87159.0,87148.0,0.01427]
[1763971282690,2.0,87157.0,87148.0,0.01427]
[1763971282904,0.323,87156.0,87148.0,0.01527]
[1763971283109,0.323,87156.0,87148.0,0.01627]
[1763971283312,2.0,87155.0,87148.0,0.01627]
[1763971283729,2.0,87155.0,87148.0,0.01427]
[1763971283931,0.323,87154.0,87148.0,0.01527]
[1763971284142,0.323,87152.0,87148.0,0.01527]
[1763971284369,0.323,87152.0,87148.0,0.01627]
[1763971284788,0.05,87149.0,87148.0,0.002]
[1763971285003,2.373,87149.0,87148.0,0.002]
[1763971285211,2.60249201,87149.0,87148.0,0.001]
[1763971285418,0.373,87141.0,87140.0,0.0004]
[1763971285627,2.47628148,87141.0,87140.0,0.0004]
[1763971285834,2.71179873,87141.0,87140.0,0.0004]
[1763971286040,2.76390122,87141.0,87140.0,0.0004]
[1763971286464,2.62877681,87141.0,87140.0,0.0004]
[1763971288154,2.60402889,87141.0,87140.0,0.0004]
[1763971288562,2.37551581,87141.0,87140.0,0.0004]
[1763971288776,2.32441332,87141.0,87140.0,0.0004]
[1763971289418,2.15528148,87141.0,87140.0,0.0004]
[1763971289626,2.47828148,87141.0,87140.0,0.0004]
[1763971289836,2.47728148,87141.0,87140.0,0.0004]
[1763971290046,2.47628148,87141.0,87140.0,0.0004]
[1763971290269,2.47728148,87141.0,87140.0,0.0004]
[1763971290488,2.374,87141.0,87140.0,0.0004]
[1763971290911,2.374,87141.0,87140.0,0.0013428]
[1763971291535,2.324,87141.0,87140.0,0.0013428]
[1763971292018,2.374,87141.0,87140.0,0.0013428]
[1763971294600,2.324,87141.0,87140.0,0.0013428]
[1763971295228,2.324,87141.0,87140.0,0.0204228]
[1763971295435,2.0,87141.0,87140.0,0.0204228]
[1763971295654,0.02738,87147.0,87140.0,0.1942028]
[1763971295898,2.0,87146.0,87140.0,0.19326]
[1763971296096,0.05,87154.0,87140.0,0.16588]
[1763971296315,0.323,87147.0,87142.0,0.10328148]
[1763971296526,2.0,87165.0,87159.0,0.01908]
[1763971296728,0.03451411,87163.0,87150.0,0.02738]
[1763971296936,0.323,87159.0,87150.0,0.02738]
[1763971297150,2.0,87159.0,87150.0,0.02738]
[1763971297362,0.012196,87166.0,87150.0,0.02738]
[1763971297363,2.0,87157.0,87150.0,0.02738]
[1763971297534,2.0,87165.0,87150.0,0.02738]
[1763971297743,2.0,87163.0,87150.0,0.02738]
[1763971298039,1.75781165,87163.0,87150.0,0.02738]
[1763971298257,2.0,87159.0,87150.0,0.02738]
[1763971298459,0.323,87160.0,87150.0,0.02738]
[1763971298692,0.323,87160.0,87159.0,0.01908]
[1763971299257,0.012196,87166.0,87159.0,0.01908]
[1763971299534,0.35751042,87169.0,87159.0,0.01908]
[1763971299723,0.35762801,87169.0,87159.0,0.01908]
[1763971299924,0.35762801,87169.0,87159.0,0.02008]
[1763971301254,0.35762801,87169.0,87159.0,0.01908]
[1763971301463,0.35762801,87169.0,87168.0,0.03389]
[1763971301464,0.00011759,87169.0,87168.0,0.03389]
[1763971301669,0.00011759,87169.0,87168.0,0.06127]
[1763971301670,0.01286927,87169.0,87168.0,0.06127]
[1763971301875,0.00011759,87169.0,87168.0,0.06127]
[1763971302289,0.01248301,87169.0,87168.0,0.06127]
[1763971302493,0.01248301,87169.0,87168.0,0.01481]
[1763971302665,0.01248301,87169.0,87168.0,0.01581]
[1763971304090,0.01248301,87169.0,87168.0,0.01681]
[1763971304432,2.38548301,87169.0,87168.0,0.002]
[1763971305388,2.38548301,87169.0,87168.0,0.001]
[1763971305562,0.05,87164.0,87162.0,0.00025135]
[1763971305781,2.323,87163.0,87162.0,0.00025135]
[1763971306012,2.373,87163.0,87162.0,0.00025135]
[1763971306214,2.40751681,87163.0,87162.0,0.00025135]
[1763971307047,2.35751681,87163.0,87162.0,0.01927135]
[1763971307318,2.323,87163.0,87162.0,0.04779135]
[1763971307516,0.323,87163.0,87162.0,0.04779135]
[1763971307729,0.04699383,87169.0,87162.0,0.04779135]
[1763971307730,2.0,87168.0,87162.0,0.04779135]
[1763971307937,2.0,87168.0,87163.0,0.02852]
[1763971308153,0.323,87165.0,87163.0,0.17492]
[1763971308559,0.323,87165.0,87164.0,0.04754]
[1763971309394,0.01248301,87169.0,87164.0,0.04754]
[1763971309601,0.01248301,87169.0,87168.0,0.01485]
[1763971310483,0.01248301,87169.0,87168.0,0.06239]
[1763971310695,0.59477221,87190.0,87168.0,0.06239]
[1763971310932,0.59516411,87190.0,87172.0,0.01902]
[1763971311166,0.59477221,87180.0,87173.0,0.02852]
[1763971311374,0.323,87179.0,87173.0,0.02852]
[1763971311814,0.323,87179.0,87178.0,0.03387]
[1763971312032,0.0127255,87190.0,87178.0,0.20879]
[1763971312255,0.0127255,87190.0,87189.0,0.01902]
[1763971312655,0.0127255,87190.0,87189.0,0.04754]
[1763971312865,0.0127255,87190.0,87179.0,0.17492]
[1763971313000,0.323,87189.0,87180.0,0.13180148]
[1763971313560,0.323,87185.0,87179.0,0.1464]
[1763971314184,0.323,87185.0,87184.0,0.01902]
[1763971315124,0.323,87185.0,87179.0,0.17592]
[1763971315323,0.323,87185.0,87184.0,0.001]
[1763971315731,0.323,87185.0,87184.0,0.04854]
[1763971316568,0.323,87185.0,87184.0,0.04954]
[1763971316971,0.0127255,87190.0,87184.0,0.04954]
[1763971317177,0.0127255,87190.0,87189.0,0.01902]
[1763971317795,0.0127255,87190.0,87189.0,0.19394]
[1763971317796,0.0003919,87190.0,87189.0,0.19394]
[1763971319577,0.0003919,87190.0,87189.0,0.1464]
[1763971319784,0.0003919,87190.0,87189.0,0.19394]
[1763971320230,0.00027719,87190.0,87189.0,0.19394]
[1763971320550,0.00027719,87190.0,87189.0,0.19494]
[1763971320761,0.01260351,87190.0,87189.0,0.16642]
[1763971320980,2.32327719,87190.0,87189.0,0.001]
[1763971321194,2.32327719,87190.0,87145.0,0.2473]
[1763971321195,0.05210249,87185.0,87141.0,0.02852]
[1763971321408,0.05210249,87185.0,87149.0,0.02852]
[1763971321409,0.05,87163.0,87149.0,0.02852]
[1763971321619,0.05,87163.0,87143.0,0.01485]
[1763971321831,2.373,87163.0,87143.0,0.04337]
[1763971322044,2.38785,87163.0,87143.0,0.04337]
[1763971322256,2.38785,87163.0,87152.0,0.01485]
[1763971322524,2.33785,87163.0,87152.0,0.01485]
[1763971322731,2.33785,87163.0,87162.0,0.00036605]
[1763971323145,2.323,87163.0,87162.0,0.00036605]
[1763971323598,2.373,87163.0,87162.0,0.00036605]
[1763971323808,2.60245515,87163.0,87162.0,0.00036605]
[1763971324465,2.373,87163.0,87162.0,0.00036605]
[1763971325766,2.374,87163.0,87162.0,0.00036605]
[1763971325971,2.373,87163.0,87162.0,0.00036605]
[1763971326437,2.60345515,87163.0,87162.0,0.00036605]
[1763971326797,2.65555764,87163.0,87162.0,0.00036605]
[1763971327177,2.42610249,87163.0,87162.0,0.00036605]
[1763971328484,2.65555764,87163.0,87162.0,0.00036605]
[1763971328911,2.42610249,87163.0,87162.0,0.00036605]
[1763971330535,2.42510249,87163.0,87162.0,0.00036605]
[1763971330960,2.374,87163.0,87162.0,0.00036605]
[1763971331555,2.62862293,87163.0,87162.0,0.00036605]
[1763971332012,2.62962293,87163.0,87162.0,0.00036605]
[1763971332222,2.68172542,87163.0,87162.0,0.00036605]
[1763971333533,0.323,87141.0,87130.0,0.0002]
[1763971333747,2.52838397,87141.0,87140.0,0.00051759]
[1763971333960,2.52838397,87141.0,87140.0,0.00011759]
[1763971333961,2.59190709,87141.0,87140.0,0.00011759]
[1763971334158,2.61489284,87141.0,87140.0,0.00011759]
[1763971335327,2.61589284,87141.0,87140.0,0.00011759]
[1763971336362,2.60253942,87131.0,87130.0,0.0002]
[1763971336572,2.60253942,87131.0,87130.0,0.0003174]
[1763971336747,2.373,87131.0,87130.0,0.0003174]
[1763971337092,2.60253942,87131.0,87130.0,0.0003174]
[1763971337776,2.60931115,87131.0,87130.0,0.0003174]
[1763971338569,2.65931115,87131.0,87130.0,0.0003174]
[1763971338746,0.55256314,87122.0,87121.0,0.1464]
[1763971338965,2.60256577,87121.0,87111.0,0.1464]
[1763971339555,2.60256577,87121.0,87120.0,0.00152028]
[1763971339978,2.373,87121.0,87120.0,0.00152028]
[1763971340369,2.05,87121.0,87120.0,0.00152028]
[1763971340971,2.0,87121.0,87120.0,0.00152028]
[1763971342145,2.27956577,87121.0,87120.0,0.00152028]
[1763971342351,2.373,87121.0,87120.0,0.00152028]
[1763971342551,2.6344706,87121.0,87120.0,0.00152028]
[1763971342955,2.73657309,87121.0,87120.0,0.00152028]
[1763971343946,0.60469461,87111.0,87090.0,0.0002]
[1763971344063,2.373,87101.0,87090.0,0.0002]
[1763971344262,2.373,87101.0,87100.0,0.00051764]
[1763971344869,0.323,87100.0,87090.0,0.0002]
[1763971345119,2.33448092,87101.0,87090.0,0.0002]
[1763971345120,2.373,87091.0,87090.0,0.00059242]
[1763971345531,2.37981176,87091.0,87090.0,0.00059242]
[1763971345765,2.37981176,87091.0,87070.0,0.0002]
[1763971345766,2.65265803,87086.0,87070.0,0.0002]
[1763971345973,2.65265803,87086.0,87085.0,0.00119907]
[1763971346187,2.45490483,87086.0,87085.0,0.00119907]
[1763971346398,2.373,87086.0,87085.0,0.00119907]
[1763971347020,2.323,87086.0,87085.0,0.00119907]
[1763971347431,2.373,87086.0,87085.0,0.00119907]
[1763971347850,2.323,87086.0,87085.0,0.00119907]
[1763971348713,2.324,87086.0,87085.0,0.00119907]
[1763971349200,2.323,87086.0,87085.0,0.00119907]
[1763971349424,2.323,87086.0,87085.0,0.00219907]
[1763971349628,2.333,87086.0,87085.0,0.00219907]
[1763971350038,2.333,87086.0,87085.0,0.00330001]
[1763971350451,2.333,87086.0,87085.0,0.00430001]
[1763971350692,2.323,87086.0,87085.0,0.00430001]
[1763971350897,2.323,87086.0,87085.0,0.02187001]
[1763971351095,2.323,87086.0,87085.0,0.00330001]
[1763971351293,2.323,87086.0,87085.0,0.00230001]
[1763971351712,2.323,87086.0,87085.0,0.00330001]
[1763971352101,2.373,87086.0,87085.0,0.00330001]
[1763971352259,2.373,87086.0,87085.0,0.00230001]
[1763971352571,2.373,87086.0,87085.0,0.00330001]
[1763971353632,2.373,87086.0,87085.0,0.00430001]
[1763971354008,2.373,87086.0,87085.0,0.00330001]
[1763971354234,2.323,87086.0,87085.0,0.00330001]
[1763971354404,2.323,87086.0,87085.0,0.00230001]
[1763971354825,2.323,87086.0,87085.0,0.00330001]
[1763971356496,2.323,87086.0,87085.0,0.14970001]
[1763971356709,2.333,87086.0,87085.0,0.14970001]
[1763971358011,2.333,87086.0,87085.0,0.14870001]
[1763971359488,2.333,87086.0,87085.0,0.14970001]
[1763971360999,2.323,87086.0,87085.0,0.14970001]
[1763971361401,2.323,87086.0,87085.0,0.16766001]
[1763971361603,2.323,87086.0,87085.0,0.14970001]
[1763971361818,2.373,87086.0,87085.0,0.14970001]
[1763971362023,2.323,87086.0,87085.0,0.16766001]
[1763971362631,2.323,87086.0,87085.0,0.14970001]
[1763971366771,2.323,87086.0,87085.0,0.19408001]
[1763971366978,2.0,87099.0,87085.0,0.19408001]
[1763971367092,0.05,87094.0,87086.0,0.02642]
[1763971367289,0.323,87090.0,87086.0,0.02642]
[1763971367499,3.3728211,87100.0,87099.0,0.01362]
[1763971367733,2.5,87100.0,87099.0,0.01362]
[1763971367970,2.823,87100.0,87099.0,0.03158]
[1763971368370,2.5,87100.0,87099.0,0.058]
[1763971368570,2.823,87100.0,87099.0,0.058]
[1763971368768,2.5,87100.0,87099.0,0.058]
[1763971368971,2.5,87100.0,87099.0,0.03158]
[1763971369194,2.5,87100.0,87086.0,0.1464]
[1763971369195,0.323,87097.0,87094.0,0.01362]
[1763971369432,0.373,87097.0,87094.0,0.01362]
[1763971369814,0.323,87097.0,87094.0,0.01362]
[1763971370247,0.323,87099.0,87086.0,0.1464]
[1763971370449,0.323,87095.0,87086.0,0.1464]
[1763971370684,0.05,87093.0,87086.0,0.1464]
[1763971371212,0.05,87093.0,87092.0,0.01765]
[1763971371619,0.05,87096.0,87092.0,0.01765]
[1763971372247,0.05,87096.0,87086.0,0.1484]
[1763971372628,0.05,87092.0,87086.0,0.1484]
[1763971372803,0.05,87092.0,87086.0,0.1474]
[1763971372978,0.05,87092.0,87091.0,0.00091215]
[1763971373962,2.05,87092.0,87091.0,0.00091215]
[1763971374206,2.05,87092.0,87091.0,0.14731215]
[1763971374637,2.05,87092.0,87091.0,0.14831215]
[1763971374772,2.05,87092.0,87091.0,0.14731215]
[1763971374983,2.05,87092.0,87091.0,0.00091215]
[1763971375203,2.051,87092.0,87091.0,0.00091215]
[1763971375482,2.05,87092.0,87091.0,0.00191215]
[1763971375720,2.373,87092.0,87091.0,0.00091215]
[1763971377363,2.323,87092.0,87091.0,0.00091215]
[1763971377564,2.35781368,87092.0,87091.0,0.00091215]
[1763971377763,2.333,87092.0,87091.0,0.00091215]
[1763971380111,2.334,87092.0,87091.0,0.00091215]
[1763971380339,2.333,87092.0,87091.0,0.00091215]
[1763971380518,2.67786352,87092.0,87091.0,0.00091215]
[1763971380772,2.68955597,87092.0,87091.0,0.00091215]
[1763971380975,2.68955597,87092.0,87091.0,2.15e-06]
[1763971380976,2.40991376,87092.0,87091.0,2.15e-06]
[1763971381381,2.63955597,87092.0,87091.0,2.15e-06]
[1763971381787,2.64155597,87092.0,87091.0,2.15e-06]
[1763971381939,2.64255597,87092.0,87091.0,2.15e-06]
[1763971382320,2.41191376,87092.0,87091.0,2.15e-06]
[1763971382705,2.36081127,87092.0,87091.0,2.15e-06]
[1763971382969,2.35881127,87092.0,87091.0,2.15e-06]
[1763971383356,2.35981127,87092.0,87091.0,2.15e-06]
[1763971383517,2.35881127,87092.0,87091.0,2.15e-06]
[1763971383927,2.35981127,87092.0,87091.0,2.15e-06]
[1763971384845,2.35881127,87092.0,87091.0,2.15e-06]
[1763971385240,2.35981127,87092.0,87091.0,2.15e-06]
[1763971385648,2.35881127,87092.0,87091.0,2.15e-06]
[1763971386050,2.39335559,87092.0,87091.0,2.15e-06]
[1763971386253,2.39335559,87092.0,87091.0,0.14640215]